Workbook

Sheet Ber
A1: 2
C3: =IF(A78=1,Geg!B166,Geg!I166) -> Berekening R en U waarden spouwmuurconstructies
C4: =IF(A78=1,Geg!B167,Geg!I167) -> conform STS 08.82 en Butgb-informatieblad
C5: =IF(A78=1,Geg!B168,Geg!I168) -> "Geïsoleerde spouwmuren met gevelmetselwerk"
C7: PROJECT:
C8: =IF(A78=1,Geg!B171,Geg!I171) -> Aanvrager:
C9: =IF(A78=1,Geg!B172,Geg!I172) -> Onderdeel:
C12: =IF(A78=1,Geg!B175,Geg!I175) -> Uitgangspunten:
C13: =IF(A$78=1,Geg!B176,Geg!I176) -> Buitenspouwblad | H13: =IF(A78=1,Geg!F176,Geg!M176) -> Baksteen | K13: 100 | L13: =Geg!D43 -> 90
C14: =IF(A$78=1,Geg!B177,Geg!I177) -> Luchtspouw
C15: =IF(A$78=1,Geg!B178,Geg!I178) -> Isolatie | H15: PolyFort+
C16: =IF(A$78=1,Geg!B179,Geg!I179) -> Soort en aantal bevestigers | K16: 100
C17: =IF(A$78=1,Geg!B180,Geg!I180) -> Binnenspouwblad | K17: 100 | L17: =IF(D58=9,90,IF(D58=11,90,IF(D58=13,90,140))) -> 140
C18: =IF(A$78=1,Geg!B181,Geg!I181) -> Pleisterlaag | H18: =IF(A78=1,Geg!F181,Geg!M181) -> Gipspleister
H20: UC = | J20: =K71 -> 0.15 | K20: W/m²K
H21: RD = | J21: =FLOOR(K57,0.05) -> 6.30 | K21: m²K/W
H22: RC = | J22: =K72 -> 6.40 | K22: m²K/W
C24: =IF(A78=1,Geg!B184,Geg!K184) -> Aan de uitkomsten van dit programma kunnen geen rechten bij IsoBouw Systems bv worden ontleend. Een
C25: =IF(A78=1,Geg!B185,Geg!K185) -> herberekening conform dit programma is door IsoBouw Systems bv mogelijk. Dit programma is intellectueel
C26: =IF(A78=1,Geg!B186,Geg!K186) -> eigendom van IsoBouw Systems bv en mag als zodanig niet worden aangepast op welke wijze dan ook. ©
C27: =IF(A78=1,"",Geg!K187) -> 
D52: nr | F52: d | G52: l | H52: aant | I52: A | K52: R
F53: m | G53: W/mK | I53: m² | K53: m²K/W
A54: Rse = | K54: =Geg!F36 -> 0.04
A55: Buitenspouwblad = | E55: 1 | F55: =L13/1000 -> 0.09 | G55: =VLOOKUP(E55,Geg!A43:F43,6) -> 1.31 | K55: =F55/G55 -> 0.0687
A56: Luchtspouw = | D56: 3 | I56: * | K56: =VLOOKUP(D56,Geg!A47:F49,6) -> 0.09
A57: Isolatie = | D57: 1 | E57: 5 | F57: =VLOOKUP(E57,Geg!A86:D95,4)/1000 -> 0.196 | G57: 0.031 | K57: =F57/G57 -> 6.3226
A58: Binnenspouwblad = | D58: 7 | F58: =VLOOKUP(D58,Geg!A53:D67,4)/1000 -> 0.14 | G58: =VLOOKUP(D58,Geg!A53:E67,5) -> 0.7 | K58: =F58/G58 -> 0.2000
A59: Pleisterwerk = | E59: 2 | F59: =VLOOKUP(E59,Geg!A71:D73,4)/1000 -> 0.010 | G59: =VLOOKUP(E59,Geg!A71:F73,6) -> 0.52 | K59: =F59/G59 -> 0.0192
A60: Rsi = | K60: =Geg!F37 -> 0.13
A61: Rcorr = | K61: =Geg!E26 -> -0.10
A62: Rtot = | C62: Rtot = Rsi + SRm + Risol + Rse + Rcorr | K62: =SUM(K54:K61) -> 6.771
A63: U = | C63: U = 1/Rtot | K63: =1/K62 -> 0.1476992801
A64: a = | J64: =Geg!E38 -> 0.8
A65: lf = | D65: 1 | G65: =VLOOKUP(D65,Geg!A121:E125,5) -> 15
A66: Af = | D66: 6 | I66: =VLOOKUP(D65,Geg!A121:F125,6) -> 1.386e-05
A67: nf = | H67: =VLOOKUP(D66,Geg!A128:B134,2) -> 6
A68: di = | F68: =F57 -> 0.196
A69: DUg = | J69: 0
A70: DUf = | B70: a*((lf*Af*nf)/di)*(Risol/Rtot)² | K70: =J64*((G65*I66*H67)/F68)*(K57/K62)*(K57/K62) -> 0.004440022464
A71: Uc = | C71: U + DUg + DUf | K71: =K63+K69+K70 -> 0.1521393026
A72: RC = | K72: =(1/K71)-(K54+K60) -> 6.40
A78: 1

Sheet Geg (hidden)
A1: Berekeningsgrondslagen
A3: Bepaling Rtot van een spouwmuurconstructie conform
A4: STS 08.82 Materialen voor thermische isolatie
A5: Butgb-informatieblad Geïsoleerde spouwmuren met gevelmetselwerk
A7: Rtot = Rsi + SRm + Risol + Rse + Rcorr | F7: m²K/W
A8: U = 1/Rtot | F8: W/m²K
A9: Uc = U + DUg + DUf | F9: W/m²K
A10: Rtot = | B10: thermische weerstand van de spouwmuur
A11: Rsi = | B11: overgangsweerstand binnenzijde
A12: SRm = | B12: totaal van alle Rrekenwaarden van de iverse lagen exclusief isolatielaag
A13: Risol = | C13: gedeclareerde thermische weerstand van de homogene isolatielaag
A14: Rse = | B14: overgangsweerstand buitenzijde
A15: Rcorr = | B15: correctiefactor voor plaatsingstoleranties
A16: U = | B16: warmtedoorgangscoëfficiënt
A17: Uc = | B17: gecorrigeerde wamtedoorgangscoëfficiënt conform EN 6946
A18: DUg = | B18: toeslag voor spleten in isolatielaag
A19: DUf = | B19: toeslag voor bevestigingenspleten in isolatielaag
G20: bron:
A21: Rsi = | E21: 0.13 | F21: m²K/W | G21: EN 6946
A22: Rluchtspouw (niet geventileerd) = | D22: 30 mm | E22: 0.18 | F22: m²K/W | G22: Butgb informatieblad
A23: Rluchtspouw (zwak geventileerd) = | D23: 30 mm | E23: 0.09 | F23: m²K/W | G23: Butgb informatieblad
A24: Risol = | B24: RD | G24: Butgb informatieblad
A25: Rse = | E25: 0.04 | F25: m²K/W | G25: EN 6946
A26: Rcorr = | E26: -0.10 | F26: m²K/W | G26: Butgb informatieblad
A27: DUg = | G27: EN 6946, of = 0 als uitvoering conform ATG, anders conform EN 6946
A28: DUf = | B28: a*((lf*Af*nf)/di)*(Risol/Rtot)² | F28: W/m²K | G28: EN 6946
B29: a = | C29: coëfficiënt = | E29: 0.8
B30: lf = | C30: l bevestiger
B31: Af = | C31: oppervlakte doorsnede bevestiger
B32: nf = | C32: aantal bevestiger per m²
B33: di = | C33: lengte van de bevestiger
A35: Factoren | F35: m²K/W
B36: Rse | F36: 0.04 | G36: Bron: EN 6946
B37: Rsi | F37: 0.13 | G37: Bron: EN 6946
B38: a | E38: 0.8 | G38: Bron: Butgb
B39: Dug | E39: 0 | G39: Bron: EN 6946
A41: Buitenspouwblad | D41: d | F41: l | G41: Rm
D42: mm | F42: W/mK | G42: m²K/W
A43: 1 | B43: Baksteen | D43: 90 | E43: 90 mm | F43: 1.31 | G43: =(D43/1000)/F43 -> 0.0687 | H43: Bron: Butgb
A45: Luchtspouw | F45: Rm
F46: m²K/W | J46: Ned | N46: Frans
A47: 1 | B47: =IF(Ber!A$78=1,Geg!J47,Geg!N47) -> Luchtspouw < 30 mm | F47: 0 | G47: Bron: Butgb | J47: Luchtspouw < 30 mm | N47: Creux < 30 mm
A48: 2 | B48: =IF(Ber!A$78=1,Geg!J48,Geg!N48) -> Luchtspouw, niet geventileerd, 30 mm | F48: 0.18 | G48: Bron: Butgb | J48: Luchtspouw, niet geventileerd, 30 mm | N48: Creux, non ventilé, 30 mm
A49: 3 | B49: =IF(Ber!A$78=1,Geg!J49,Geg!N49) -> Luchtspouw, zwak geventileerd, 30 mm | F49: 0.09 | G49: Bron: Butgb | J49: Luchtspouw, zwak geventileerd, 30 mm | N49: Creux, ventilé moyènnement, 30 mm
A51: Binnenspouwblad | D51: d | E51: l | F51: Rm
D52: mm | E52: W/mK | F52: m²K/W | J52: Ned | N52: Frans
A53: 1 | B53: =IF(Ber!A$78=1,Geg!J53,Geg!N53) -> Betonblokken lambda = 1,27 W/mK | D53: 140 | E53: 1.27 | F53: =(D53/1000)/E53 -> 0.1102 | G53: Bron: Porotherm | J53: Betonblokken lambda = 1,27 W/mK | N53: Blocs de béton lambda = 1,27 W/mK
A54: 2 | B54: =IF(Ber!A$78=1,Geg!J54,Geg!N54) -> Betonblokken lambda = 1,36 W/mK | D54: 140 | E54: 1.36 | F54: 0.1029 | G54: Bron: Porotherm | J54: Betonblokken lambda = 1,36 W/mK | N54: Blocs de béton lambda = 1,36 W/mK
A55: 3 | B55: =IF(Ber!A$78=1,Geg!J55,Geg!N55) -> Cellenbeton lambda = 0,10 W/mK | D55: 140 | E55: 0.1 | F55: 1.4000 | G55: Bron: Porotherm | J55: Cellenbeton lambda = 0,10 W/mK | N55: Béton cellulaire lambda = 0,10 W/mK
A56: 4 | B56: =IF(Ber!A$78=1,Geg!J56,Geg!N56) -> Cellenbeton lambda = 0,14 W/mK | D56: 140 | E56: 0.14 | F56: 1.0000 | G56: Bron: Porotherm | J56: Cellenbeton lambda = 0,14 W/mK | N56: Béton cellulaire lambda = 0,14 W/mK
A57: 5 | B57: =IF(Ber!A$78=1,Geg!J57,Geg!N57) -> Cellenbeton lambda = 0,17 W/mK | D57: 140 | E57: 0.17 | F57: 0.8235 | G57: Bron: Porotherm | J57: Cellenbeton lambda = 0,17 W/mK | N57: Béton cellulaire lambda = 0,17 W/mK
A58: 6 | B58: =IF(Ber!A$78=1,Geg!J58,Geg!N58) -> Kalkzandsteen lambda = 0,50 W/mK | D58: 140 | E58: 0.5 | F58: 0.2800 | G58: Bron: Porotherm | J58: Kalkzandsteen lambda = 0,50 W/mK | N58: Blocs silico calcaire lambda = 0,50 W/mK
A59: 7 | B59: =IF(Ber!A$78=1,Geg!J59,Geg!N59) -> Kalkzandsteen lambda = 0,70 W/mK | D59: 140 | E59: 0.7 | F59: 0.2000 | G59: Bron: Porotherm | J59: Kalkzandsteen lambda = 0,70 W/mK | N59: Blocs silico calcaire lambda = 0,70 W/mK
A60: 8 | B60: =IF(Ber!A$78=1,Geg!J60,Geg!N60) -> Kalkzandsteen lambda = 0,93 W/mK | D60: 140 | E60: 0.93 | F60: =(D60/1000)/E60 -> 0.1505 | G60: Bron: Porotherm | J60: Kalkzandsteen lambda = 0,93 W/mK | N60: Blocs silico calcaire lambda = 0,93 W/mK
A61: 9 | B61: =IF(Ber!A$78=1,Geg!J61,Geg!N61) -> Porotherm PLS 90 | D61: 90 | E61: 0.29 | F61: 0.3103 | G61: Bron: Porotherm | J61: Porotherm PLS 90 | N61: Porotherm PLS 90
A62: 10 | B62: =IF(Ber!A$78=1,Geg!J62,Geg!N62) -> Porotherm PLS 140 | D62: 140 | E62: 0.26 | F62: 0.5385 | G62: Bron: Porotherm | J62: Porotherm PLS 140 | N62: Porotherm PLS 140
A63: 11 | B63: =IF(Ber!A$78=1,Geg!J63,Geg!N63) -> Porotherm Hogedruk 90 | D63: 90 | E63: 0.32 | F63: 0.2813 | G63: Bron: Porotherm | J63: Porotherm Hogedruk 90 | N63: Porotherm Hogedruk 90
A64: 12 | B64: =IF(Ber!A$78=1,Geg!J64,Geg!N64) -> Porotherm Hogedruk 140 | D64: 140 | E64: 0.35 | F64: 0.4000 | G64: Bron: Porotherm | J64: Porotherm Hogedruk 140 | N64: Porotherm Hogedruk 140
A65: 13 | B65: =IF(Ber!A$78=1,Geg!J65,Geg!N65) -> Porotherm silent brick | D65: 90 | E65: 0.39 | F65: 0.2308 | G65: Bron: Porotherm | J65: Porotherm silent brick | N65: Porotherm Silentbrick
A66: 14 | B66: =IF(Ber!A$78=1,Geg!J66,Geg!N66) -> Snelbouwsteen | D66: 140 | E66: 0.41 | F66: 0.3415 | G66: Bron: Butgb | J66: Snelbouwsteen | N66: Bloc treilli
A67: 15 | B67: =IF(Ber!A$78=1,Geg!J67,Geg!N67) -> Beton lambda = 1,00 W/mK | D67: 80 | E67: 1 | F67: 0.0800 | J67: Beton lambda = 1,00 W/mK | N67: Béton lambda = 1,00 W/mK
A69: Bepleistering | D69: d | F69: l | G69: Rm
D70: mm | F70: W/mK | G70: m²K/W | J70: Ned | N70: Frans
A71: 1 | B71: =IF(Ber!A$78=1,Geg!J71,Geg!N71) -> Gipspleister | D71: 0 | E71: 0 mm | F71: 0.52 | G71: =(D71/1000)/F71 -> 0.0000 | H71: Bron: Butgb | J71: Gipspleister | N71: Plâtre
A72: 2 | B72: =IF(Ber!A$78=1,Geg!J72,Geg!N72) -> Gipspleister | D72: 10 | E72: 10 mm | F72: 0.52 | G72: =(D72/1000)/F72 -> 0.0192 | H72: Bron: Butgb | J72: Gipspleister | N72: Plâtre
A73: 3 | B73: =IF(Ber!A$78=1,Geg!J73,Geg!N73) -> Gipspleister | D73: 15 | E73: 15 mm | F73: 0.52 | G73: =(D73/1000)/F73 -> 0.0288 | H73: Bron: Butgb | J73: Gipspleister | N73: Plâtre
A75: Isolatie
A77: 1 | B77: PolyFort+
A78: 2 | B78: W-PF
A80: Lambda declared isolatie | D80: d | E80: l | F80: RD
B81: =IF(Ber!D57=1,"PolyFort+","W-PF") -> PolyFort+ | D81: mm | E81: W/mK | F81: m²K/W
C82: =IF(Ber!D$57=1,"40 mm","60 mm") -> 40 mm | D82: =IF(Ber!D57=1,40,60) -> 40 | E82: =IF(Ber!D$57=1,0.031,0.035) -> 0.031 | F82: =FLOOR((D82/1000)/E82,0.05) -> 1.25
C83: =IF(Ber!D$57=1,"50 mm","80 mm") -> 50 mm | D83: =IF(Ber!D57=1,50,80) -> 50 | E83: =IF(Ber!D$57=1,0.031,0.035) -> 0.031 | F83: 1.60
C84: =IF(Ber!D$57=1,"60 mm","100 mm") -> 60 mm | D84: =IF(Ber!D57=1,60,100) -> 60 | E84: =IF(Ber!D$57=1,0.031,0.035) -> 0.031 | F84: 1.90
C85: 79 mm | D85: 79 | E85: =IF(Ber!D$57=1,0.031,0.035) -> 0.031 | F85: 2.50
A86: 1 | C86: 110 mm | D86: 110 | E86: =IF(Ber!D$57=1,0.031,0.035) -> 0.031 | F86: =FLOOR((D86/1000)/E86,0.05) -> 3.50
A87: 2 | C87: 124 mm | D87: 124 | E87: 0.031 | F87: =FLOOR((D87/1000)/E87,0.05) -> 4.00
A88: 3 | C88: 134 mm | D88: 134 | E88: 0.031 | F88: =FLOOR((D88/1000)/E88,0.05) -> 4.30
A89: 4 | C89: 165 mm | D89: 165 | E89: 0.031 | F89: =FLOOR((D89/1000)/E89,0.05) -> 5.30
A90: 5 | C90: 196 mm | D90: 196 | E90: 0.031 | F90: 6.90
A91: 6 | C91: 2 x 110 mm | D91: 220 | E91: 0.031 | F91: =FLOOR((D91/1000)/E91,0.05) -> 7.05
A92: 7 | C92: 110+124mm | D92: 234 | E92: 0.031 | F92: =FLOOR((D92/1000)/E92,0.05) -> 7.50
A93: 8 | C93: 110+134 mm | D93: 244 | E93: 0.031 | F93: =FLOOR((D93/1000)/E93,0.05) -> 7.85
A94: 9 | C94: 110+165mm | D94: 275 | E94: 0.031 | F94: =FLOOR((D94/1000)/E94,0.05) -> 8.85
A95: 10
A101: Dikten (vrije materialen)
A103: 1 | B103: 30 | C103: 30
A104: 2 | B104: 40 | C104: 40
A105: 3 | B105: 45 | C105: 45
A106: 4 | B106: 50 | C106: 50
A107: 5 | B107: 55 | C107: 55
A108: 6 | B108: 60 | C108: 60
A109: 7 | B109: 65 | C109: 65
A110: 8 | B110: 70 | C110: 70
A111: 9 | B111: 79 | C111: 79
A112: 10 | B112: 80 | C112: 80
A113: 11 | B113: 90 | C113: 90
A114: 12 | B114: 93 | C114: 93
A115: 13 | B115: 100 | C115: 100
A116: 14 | B116: 109 | C116: 109
A119: Bevestigers | E119: l | F119: A
E120: W/mK | F120: m² | I120: Ned | L120: Frans
A121: 1 | B121: =IF(Ber!A78=1,Geg!I121,Geg!L121) -> RVS Ø 4,2 mm | E121: 15 | F121: =(1/4)*(22/7)*((4.2*4.2)/(1000*1000)) -> 0.0000139 | I121: RVS Ø 4,2 mm | L121: Acier inoxydable Ø 4,2 mm
A122: 2 | B122: =IF(Ber!A78=1,Geg!I122,Geg!L122) -> RVS Ø 4,8 mm | E122: 15 | F122: =(1/4)*(22/7)*((4.8*4.8)/(1000*1000)) -> 1.81E-05 | I122: RVS Ø 4,8 mm | L122: Acier inoxydable Ø 4,8 mm
A123: 3 | B123: =IF(Ber!A78=1,Geg!I123,Geg!L123) -> Gegalv. staal Ø 4,0 mm | E123: 50 | F123: =1.3/100000 -> 1.3e-05 | G123: Bron: Butgb *) | I123: Gegalv. staal Ø 4,0 mm | L123: Acier galvanisé Ø 4,0 mm
A124: 4 | B124: =IF(Ber!A78=1,Geg!I124,Geg!L124) -> Gegalv. staal Ø 4,2 mm | E124: 50 | F124: =(1/4)*(22/7)*((4.2*4.2)/(1000*1000)) -> 1.386e-05 | I124: Gegalv. staal Ø 4,2 mm | L124: Acier galvanisé Ø 4,2 mm
A125: 5 | B125: =IF(Ber!A78=1,Geg!I125,Geg!L125) -> Gegalv. staal Ø 4,8 mm | E125: 50 | F125: =(1/4)*(22/7)*((4.8*4.8)/(1000*1000)) -> 1.810285714e-05 | I125: Gegalv. staal Ø 4,8 mm | L125: Acier galvanisé Ø 4,8 mm
A127: Aantal bevestigers | F127: *) eig: | G127: =(1/4)*(22/7)*((4*4)/(1000*1000)) -> 1.257142857e-05
A128: 1 | B128: 1
A129: 2 | B129: 2
A130: 3 | B130: 3
A131: 4 | B131: 4
A132: 5 | B132: 5
A133: 6 | B133: 6
A134: 7 | B134: 7
A137: Concurrentie isolatie
A139: 1 | B139: MMMF 33 | C139: 0.033 | D139: W/mK
A140: 2 | B140: MMMF 34 | C140: 0.034 | D140: W/mK
A141: 3 | B141: MMMF 35 | C141: 0.035 | D141: W/mK
A142: 4 | B142: XPS 34 | C142: 0.034 | D142: W/mK
A143: 5 | B143: XPS 36 | C143: 0.036 | D143: W/mK
A144: 6 | B144: PU 23 | C144: 0.023 | D144: W/mK
A145: 7 | B145: PU 24 | C145: 0.024 | D145: W/mK
A146: 8 | B146: PU 25 | C146: 0.025 | D146: W/mK
A147: 9 | B147: PU 26 | C147: 0.026 | D147: W/mK
A148: 10 | B148: PU 27 | C148: 0.027 | D148: W/mK
A149: 11 | B149: PU 28 | C149: 0.028 | D149: W/mK
A150: 12 | B150: PU 29 | C150: 0.029 | D150: W/mK
A151: 13 | B151: EPS 60 | C151: 0.038 | D151: W/mK
A152: 14 | B152: EPS 100 | C152: 0.036 | D152: W/mK
A153: 15 | B153: EPS 60 HR 30 | C153: 0.030 | D153: W/mK
A154: 16 | B154: EPS 60 HR 31 | C154: 0.031 | D154: W/mK
A156: Alufolie
A158: 1 | B158: ja | C158: 0.39 | D158: m²K/W
A159: 2 | B159: nee | C159: 0 | D159: m²K/W
B162: Taal
A163: 1 | B163: Nederlands
A164: 2 | B164: Français
B166: Berekening R en U waarden spouwmuurconstructies | I166: Chiffrage des valeurs R et U des constructions de murs creux conformément
B167: conform STS 08.82 en Butgb-informatieblad | I167: au STS 08.82 et le Feuillet d'information de l'UBAtc "Mur creux isolés
B168: "Geïsoleerde spouwmuren met gevelmetselwerk" | I168: de façades et maçonnerie"
B170: PROJECT: | I170: PROJECT:
B171: Aanvrager: | I171: Demandeur:
B172: Onderdeel: | I172: Section:
B175: Uitgangspunten: | I175: Points de départ:
B176: Buitenspouwblad | F176: Baksteen | I176: Paroi extérieur | M176: Brique
B177: Luchtspouw | I177: Vide d'air
B178: Isolatie | I178: Isolation
B179: Soort en aantal bevestigers | I179: Sorte et nombre d'attaches
B180: Binnenspouwblad | I180: Paroi intérieur
B181: Pleisterlaag | F181: Gipspleister | I181: Plâtrage | M181: Plâtre
B184: Aan de uitkomsten van dit programma kunnen geen rechten bij IsoBouw Systems bv worden ontleend. Een | K184: IsoBouw Systems bv ne peut en aucun cas être tenu pour responsable quant aux résultats de ce
B185: herberekening conform dit programma is door IsoBouw Systems bv mogelijk. Dit programma is intellectueel | K185: programme. Conformément à ce programme, IsoBouw Systems bv est en mesure de procéder à un
B186: eigendom van IsoBouw Systems bv en mag als zodanig niet worden aangepast op welke wijze dan ook. © | K186: recalcul. Ce programme est la propriété intellectuelle d'IsoBouw Systems bv et ne doit, en tant que
K187: tel, pas être modifié, de quelque manière que ce soit. ©

Sheet Contr conc (hidden)
A1: Kemisol | F1: Isomo
A2: EPS 100 | F2: EPS 60 (grijs?)
F3: met 2 zijdig alufolie
B5: d | C5: l | D5: RD | F5: d | G5: l | H5: RD
B7: 40 | C7: 0.036 | D7: =FLOOR((B7/1000)/C7,0.05) -> 1.10 | F7: 30 | H7: 2.10
B8: 50 | C8: =C7 -> 0.036 | D8: =FLOOR((B8/1000)/C8,0.05) -> 1.35 | F8: 40 | G8: =G7 -> 0 | H8: 2.40
B9: 60 | C9: =C7 -> 0.036 | D9: 1.65 | F9: 45 | G9: =G7 -> 0 | H9: 2.60
B10: 70 | C10: =C7 -> 0.036 | D10: 1.90 | F10: 50 | G10: =G7 -> 0 | H10: 2.70
B11: 80 | C11: =C7 -> 0.036 | D11: 2.20 | F11: 55 | G11: =G7 -> 0 | H11: 2.90
B12: 90 | C12: =C7 -> 0.036 | D12: 2.50 | F12: 60 | G12: =G7 -> 0 | H12: 3.00
B13: 100 | C13: =C7 -> 0.036 | D13: 2.75 | F13: 80 | G13: =G7 -> 0 | H13: 3.60
B14: 110 | C14: =C7 -> 0.036 | D14: 3.05
B15: 120 | C15: =C7 -> 0.036 | D15: 3.30
A17: Isover | B17: d | C17: l | J17: RD
C18: mupan plus | D18: mupan facade | E18: easypan | F18: facade 100 | G18: PAM E428 | H18: Mupan | I18: Facade 40 | J18: mupan plus | K18: mupan facade | L18: easypan | M18: facade 100 | N18: PAM E428 | O18: Mupan | P18: Facade 40
B19: 70 | C19: 0.033 | D19: 0.033 | E19: 0.034 | F19: 0.034 | G19: 0.034 | H19: 0.035 | I19: 0.035 | J19: =FLOOR(($B19/1000)/C19,0.05) -> 2.10 | K19: =FLOOR(($B19/1000)/D19,0.05) -> 2.10 | L19: 2.05 | M19: 2.05 | N19: 2.05 | O19: 2.00 | P19: 2.00
B20: 80 | C20: 0.033 | D20: 0.033 | E20: 0.034 | F20: 0.034 | G20: 0.034 | H20: 0.035 | I20: 0.035 | J20: =FLOOR(($B20/1000)/C20,0.05) -> 2.40 | K20: =FLOOR(($B20/1000)/D20,0.05) -> 2.40 | L20: 2.35 | M20: 2.35 | N20: 2.35 | O20: 2.25 | P20: 2.25
B21: 90 | C21: 0.033 | D21: 0.033 | E21: 0.034 | F21: 0.034 | G21: 0.034 | H21: 0.035 | I21: 0.035 | J21: =FLOOR(($B21/1000)/C21,0.05) -> 2.70 | K21: 2.70 | L21: 2.60 | M21: 2.60 | N21: 2.60 | O21: 2.55 | P21: 2.55
B22: 100 | C22: 0.033 | D22: 0.033 | E22: 0.034 | F22: 0.034 | G22: 0.034 | H22: 0.035 | I22: 0.035 | J22: =FLOOR(($B22/1000)/C22,0.05) -> 3.00 | K22: 3.00 | L22: 2.90 | M22: 2.90 | N22: 2.90 | O22: 2.85 | P22: 2.85
G24: =FLOOR((0.04/0.034),0.05) -> 1.15 | I24: =FLOOR((0.05/0.035),0.05) -> 1.40
A27: Uitgangspunten:
A28: Buitenspouwblad | H28: 90 mm | I28: 90
A29: Luchtspouw
A30: Alu folie
A31: Isolatie
A32: Soort en aantal bevestigers
A33: Binnenspouwblad | H33: =IF(D50=9,"90 mm",IF(D50=11,"90 mm",IF(D50=13,"90 mm","140 mm"))) -> 140 mm | I33: =IF(D50=9,90,IF(D50=11,90,IF(D50=13,90,140))) -> 140
A34: Pleisterlaag | E34: Gipspleister
A39: UC = | C39: =L63 -> 0.39 | D39: W/m²K
A40: RD = | C40: =FLOOR(K49,0.05) -> 2.10 | D40: m²K/W
A41: RC = | C41: =K64 -> 2.41 | D41: m²K/W
D43: nr | F43: d | G43: l | H43: aant | I43: A | K43: R | L43: U
F44: m | G44: W/mK | I44: m² | K44: m²K/W | L44: W/m²K
A45: Rse = | K45: =Geg!F36 -> 0.04
A46: Buitenspouwblad = | D46: 1 | E46: 1 | F46: =(VLOOKUP(E46,Geg!A43:D43,4)/1000) -> 0.09 | G46: =VLOOKUP(E46,Geg!A43:F43,6) -> 1.31 | K46: =F46/G46 -> 0.0687
A47: Luchtspouw = | D47: 3 | K47: =VLOOKUP(D47,Geg!A47:F49,6) -> 0.09
A48: Alufolie = | D48: 2 | K48: =VLOOKUP(D48,Geg!A158:C159,3) -> 0
A49: Isolatie = | D49: 11 | E49: 6 | F49: =VLOOKUP(E49,Geg!A103:C115,3)/1000 -> 0.06 | G49: =VLOOKUP(D49,Geg!A139:C154,3) -> 0.028 | K49: =F49/G49 -> 2.1429
A50: Binnenspouwblad = | D50: 14 | F50: =VLOOKUP(D50,Geg!A53:D55,4)/1000 -> 0.14 | G50: =VLOOKUP(D50,Geg!A53:E66,5) -> 0.41 | K50: =F50/G50 -> 0.3415
A51: Pleisterwerk = | E51: 2 | F51: =VLOOKUP(E51,Geg!A71:D73,4)/1000 -> 0.01 | G51: =VLOOKUP(E51,Geg!A71:F73,6) -> 0.52 | K51: =F51/G51 -> 0.0192
A52: Rsi = | K52: =Geg!F37 -> 0.13
A53: Rcorr = | K53: =Geg!E26 -> -0.100
A54: Rtot = | K54: =SUM(K45:K53) -> 2.732
A55: U = | L55: =1/K54 -> 0.37
A56: a = | J56: =Geg!E38 -> 0.8
A57: lf = | D57: 3 | G57: =VLOOKUP(D57,Geg!A121:E125,5) -> 50
A58: Af = | I58: =VLOOKUP(D57,Geg!A121:F125,6) -> 1.3e-05
A59: nf = | D59: 4 | H59: =VLOOKUP(D59,Geg!A128:B134,2) -> 4
A60: di = | F60: =F49 -> 0.06
A61: DUg = | L61: =Geg!E39 -> 0
A62: DUf = | B62: a*((lf*Af*nf)/di)*(Risol/Rtot)² | L62: =(J56*(G57*I58*H59)/F60)*(K49/K54)*(K49/K54) -> 0.02132 | N62: =0.06*50*5*0.000013 -> 0.000195
A63: Uc = | L63: =L55+L61+L62 -> 0.39
A64: RC = | K64: =1/L63-(K45+K52) -> 2.41

Sheet Standaardconstr (hidden)
E3: l | F3: d | G3: R
B4: Rse | G4: 0.13
B5: Rse | G5: 0.04
B6: Buitenspouwblad | E6: 1.31 | F6: 0.09 | G6: =F6/E6 -> 0.0687
B7: Luchtspouw (30 mm zwak geventileerd) | G7: 0.09
B8: Isolatie
B9: Binnenspouwblad | E9: 0.41 | F9: 0.14 | G9: =F9/E9 -> 0.3415
B10: Gipspleister | E10: 0.52 | F10: 0.01 | G10: =F10/E10 -> 0.0192
B14: Ankers : 4 stuks /m² | D14: Ø4 l = 0,50
B15: gegalvaniseerd staal Ø 4

Sheet Vergelijk tbv brochure (hidden)
A1: Waarden PolyFort+
A4: RD | B4: (m²K/W)
A6: dikte | B6: (mm) | C6: PolyFort+ | D6: XPS ** | E6: MW **
A8: 40 | C8: =FLOOR((A8/1000)/0.031,0.05) -> 1.25 | D8: =FLOOR((A8/1000)/0.034,0.05) -> 1.15 | E8: =FLOOR((A8/1000)/0.035,0.05) -> 1.10
A9: 50 | C9: 1.60 | D9: =FLOOR((A9/1000)/0.034,0.05) -> 1.45 | E9: 1.40
A10: 60 | C10: 1.90 | D10: =FLOOR((A10/1000)/0.036,0.05) -> 1.65 | E10: 1.70
A11: 79 | C11: 2.50 | D11: =FLOOR((A11/1000)/0.036,0.05) -> 2.15 | E11: 2.25
A12: 93 | C12: 3.00 | D12: =FLOOR((A12/1000)/0.036,0.05) -> 2.55 | E12: 2.65
A13: 109 | C13: 3.50 | D13: =FLOOR((A13/1000)/0.036,0.05) -> 3.00 | E13: 3.10
A15: **: Lambda declared XPS = 0,034 tot 60 mm, daarboven 0,036 en MW = 0,035 W/mK
A17: UC * | B17: (W/m²K)
A19: dikte | B19: (mm) | C19: PolyFort+ | D19: XPS ** | E19: MW **
A21: 40 | C21: 0.56 | D21: 0.59 | E21: 0.60
A22: 50 | C22: 0.48 | D22: 0.51 | E22: 0.52
A23: 60 | C23: 0.42 | D23: 0.45 | E23: 0.45
A24: 79 | C24: 0.34 | D24: 0.37 | E24: 0.37
A25: 93 | C25: 0.29 | D25: 0.32 | E25: 0.32
A26: 109 | C26: 0.26 | D26: 0.30 | E26: 0.30
A28: * Bij gelijke gevelopbouw

Sheet Decker (hidden)
A2: basis
B3: d | C3: l | D3: R
B4: mm | C4: W/mK | D4: m²K/W
A5: binnen | D5: 0.13
A6: hout | C6: 0.13 | D6: =(B6/1000)/C6 -> 0
A7: EPS HR (PolyFort) | C7: 0.031 | D7: =(B7/1000)/C7 -> 0
A8: folie | D8: 0
A9: spouw, 30 mm licht geventileerd | D9: 0.09
A10: steen | B10: 90 | C10: 1.31 | D10: =(B10/1000)/C10 -> 0.06870229008
A11: buiten | D11: 0.04
A13: correctie | D13: -0.1
A15: Rtot | D15: =FLOOR(SUM(D5:D13),0.05) -> 0.20
A17: ED-PSP (5 plis) | U17: ED-PSP (3 plis) | AO17: ED-BSP (7 plis) | BI17: MHM
B19: d | C19: l | D19: R | G19: d | H19: l | I19: R | L19: d | M19: l | N19: R | Q19: d | R19: l | S19: R | V19: d | W19: l | X19: R | AA19: d | AB19: l | AC19: R | AF19: d | AG19: l | AH19: R | AK19: d | AL19: l | AM19: R | AP19: d | AQ19: l | AR19: R | AU19: d | AV19: l | AW19: R | AZ19: d | BA19: l | BB19: R | BE19: d | BF19: l | BG19: R | BJ19: d | BK19: l | BL19: R | BO19: d | BP19: l | BQ19: R | BT19: d | BU19: l | BV19: R | BY19: d | BZ19: l | CA19: R
B20: mm | C20: W/mK | D20: m²K/W | G20: mm | H20: W/mK | I20: m²K/W | L20: mm | M20: W/mK | N20: m²K/W | Q20: mm | R20: W/mK | S20: m²K/W | V20: mm | W20: W/mK | X20: m²K/W | AA20: mm | AB20: W/mK | AC20: m²K/W | AF20: mm | AG20: W/mK | AH20: m²K/W | AK20: mm | AL20: W/mK | AM20: m²K/W | AP20: mm | AQ20: W/mK | AR20: m²K/W | AU20: mm | AV20: W/mK | AW20: m²K/W | AZ20: mm | BA20: W/mK | BB20: m²K/W | BE20: mm | BF20: W/mK | BG20: m²K/W | BJ20: mm | BK20: W/mK | BL20: m²K/W | BO20: mm | BP20: W/mK | BQ20: m²K/W | BT20: mm | BU20: W/mK | BV20: m²K/W | BY20: mm | BZ20: W/mK | CA20: m²K/W
A21: binnen | D21: 0.13 | F21: binnen | I21: 0.13 | K21: binnen | N21: 0.13 | P21: binnen | S21: 0.13 | U21: binnen | X21: 0.13 | Z21: binnen | AC21: 0.13 | AE21: binnen | AH21: 0.13 | AJ21: binnen | AM21: 0.13 | AO21: binnen | AR21: 0.13 | AT21: binnen | AW21: 0.13 | AY21: binnen | BB21: 0.13 | BD21: binnen | BG21: 0.13 | BI21: binnen | BL21: 0.13 | BN21: binnen | BQ21: 0.13 | BS21: binnen | BV21: 0.13 | BX21: binnen | CA21: 0.13
A22: hout | B22: 109 | C22: 0.13 | D22: =(B22/1000)/C22 -> 0.8384615385 | F22: hout | G22: 109 | H22: 0.13 | I22: =(G22/1000)/H22 -> 0.8384615385 | K22: hout | L22: 109 | M22: 0.13 | N22: =(L22/1000)/M22 -> 0.8384615385 | P22: hout | Q22: 109 | R22: 0.13 | S22: =(Q22/1000)/R22 -> 0.8384615385 | U22: hout | V22: 109 | W22: 0.13 | X22: =(V22/1000)/W22 -> 0.8384615385 | Z22: hout | AA22: 109 | AB22: 0.13 | AC22: =(AA22/1000)/AB22 -> 0.8384615385 | AE22: hout | AF22: 109 | AG22: 0.13 | AH22: =(AF22/1000)/AG22 -> 0.8384615385 | AJ22: hout | AK22: 109 | AL22: 0.13 | AM22: =(AK22/1000)/AL22 -> 0.8384615385 | AO22: hout | AP22: 130 | AQ22: 0.13 | AR22: =(AP22/1000)/AQ22 -> 1 | AT22: hout | AU22: 130 | AV22: 0.13 | AW22: =(AU22/1000)/AV22 -> 1 | AY22: hout | AZ22: 130 | BA22: 0.13 | BB22: =(AZ22/1000)/BA22 -> 1 | BD22: hout | BE22: 130 | BF22: 0.13 | BG22: =(BE22/1000)/BF22 -> 1 | BI22: hout | BJ22: 115 | BK22: 0.13 | BL22: =(BJ22/1000)/BK22 -> 0.8846153846 | BN22: hout | BO22: 115 | BP22: 0.13 | BQ22: =(BO22/1000)/BP22 -> 0.8846153846 | BS22: hout | BT22: 115 | BU22: 0.13 | BV22: =(BT22/1000)/BU22 -> 0.8846153846 | BX22: hout | BY22: 115 | BZ22: 0.13 | CA22: =(BY22/1000)/BZ22 -> 0.8846153846
A23: EPS HR (PolyFort) | B23: 60 | C23: 0.031 | D23: =(B23/1000)/C23 -> 1.935483871 | F23: EPS HR (PolyFort) | G23: 79 | H23: 0.031 | I23: =(G23/1000)/H23 -> 2.548387097 | K23: EPS HR (PolyFort) | L23: 93 | M23: 0.031 | N23: =(L23/1000)/M23 -> 3 | P23: EPS HR (PolyFort) | Q23: 109 | R23: 0.031 | S23: =(Q23/1000)/R23 -> 3.516129032 | U23: EPS HR (PolyFort) | V23: 60 | W23: 0.031 | X23: =(V23/1000)/W23 -> 1.935483871 | Z23: EPS HR (PolyFort) | AA23: 79 | AB23: 0.031 | AC23: =(AA23/1000)/AB23 -> 2.548387097 | AE23: EPS HR (PolyFort) | AF23: 93 | AG23: 0.031 | AH23: =(AF23/1000)/AG23 -> 3 | AJ23: EPS HR (PolyFort) | AK23: 109 | AL23: 0.031 | AM23: =(AK23/1000)/AL23 -> 3.516129032 | AO23: EPS HR (PolyFort) | AP23: 60 | AQ23: 0.031 | AR23: =(AP23/1000)/AQ23 -> 1.935483871 | AT23: EPS HR (PolyFort) | AU23: 79 | AV23: 0.031 | AW23: =(AU23/1000)/AV23 -> 2.548387097 | AY23: EPS HR (PolyFort) | AZ23: 93 | BA23: 0.031 | BB23: =(AZ23/1000)/BA23 -> 3 | BD23: EPS HR (PolyFort) | BE23: 109 | BF23: 0.031 | BG23: =(BE23/1000)/BF23 -> 3.516129032 | BI23: EPS HR (PolyFort) | BJ23: 60 | BK23: 0.031 | BL23: =(BJ23/1000)/BK23 -> 1.935483871 | BN23: EPS HR (PolyFort) | BO23: 79 | BP23: 0.031 | BQ23: =(BO23/1000)/BP23 -> 2.548387097 | BS23: EPS HR (PolyFort) | BT23: 93 | BU23: 0.031 | BV23: =(BT23/1000)/BU23 -> 3 | BX23: EPS HR (PolyFort) | BY23: 109 | BZ23: 0.031 | CA23: =(BY23/1000)/BZ23 -> 3.516129032
A24: folie | D24: 0 | F24: folie | I24: 0 | K24: folie | N24: 0 | P24: folie | S24: 0 | U24: folie | X24: 0 | Z24: folie | AC24: 0 | AE24: folie | AH24: 0 | AJ24: folie | AM24: 0 | AO24: folie | AR24: 0 | AT24: folie | AW24: 0 | AY24: folie | BB24: 0 | BD24: folie | BG24: 0 | BI24: folie | BL24: 0 | BN24: folie | BQ24: 0 | BS24: folie | BV24: 0 | BX24: folie | CA24: 0
A25: spouw, 30 mm licht geventileerd | D25: 0.09 | F25: spouw, 30 mm licht geventileerd | I25: 0.09 | K25: spouw, 30 mm licht geventileerd | N25: 0.09 | P25: spouw, 30 mm licht geventileerd | S25: 0.09 | U25: spouw, 30 mm licht geventileerd | X25: 0.09 | Z25: spouw, 30 mm licht geventileerd | AC25: 0.09 | AE25: spouw, 30 mm licht geventileerd | AH25: 0.09 | AJ25: spouw, 30 mm licht geventileerd | AM25: 0.09 | AO25: spouw, 30 mm licht geventileerd | AR25: 0.09 | AT25: spouw, 30 mm licht geventileerd | AW25: 0.09 | AY25: spouw, 30 mm licht geventileerd | BB25: 0.09 | BD25: spouw, 30 mm licht geventileerd | BG25: 0.09 | BI25: spouw, 30 mm licht geventileerd | BL25: 0.09 | BN25: spouw, 30 mm licht geventileerd | BQ25: 0.09 | BS25: spouw, 30 mm licht geventileerd | BV25: 0.09 | BX25: spouw, 30 mm licht geventileerd | CA25: 0.09
A26: steen | B26: 90 | C26: 1.31 | D26: =(B26/1000)/C26 -> 0.06870229008 | F26: steen | G26: 90 | H26: 1.31 | I26: =(G26/1000)/H26 -> 0.06870229008 | K26: steen | L26: 90 | M26: 1.31 | N26: =(L26/1000)/M26 -> 0.06870229008 | P26: steen | Q26: 90 | R26: 1.31 | S26: =(Q26/1000)/R26 -> 0.06870229008 | U26: steen | V26: 90 | W26: 1.31 | X26: =(V26/1000)/W26 -> 0.06870229008 | Z26: steen | AA26: 90 | AB26: 1.31 | AC26: =(AA26/1000)/AB26 -> 0.06870229008 | AE26: steen | AF26: 90 | AG26: 1.31 | AH26: =(AF26/1000)/AG26 -> 0.06870229008 | AJ26: steen | AK26: 90 | AL26: 1.31 | AM26: =(AK26/1000)/AL26 -> 0.06870229008 | AO26: steen | AP26: 90 | AQ26: 1.31 | AR26: =(AP26/1000)/AQ26 -> 0.06870229008 | AT26: steen | AU26: 90 | AV26: 1.31 | AW26: =(AU26/1000)/AV26 -> 0.06870229008 | AY26: steen | AZ26: 90 | BA26: 1.31 | BB26: =(AZ26/1000)/BA26 -> 0.06870229008 | BD26: steen | BE26: 90 | BF26: 1.31 | BG26: =(BE26/1000)/BF26 -> 0.06870229008 | BI26: steen | BJ26: 90 | BK26: 1.31 | BL26: =(BJ26/1000)/BK26 -> 0.06870229008 | BN26: steen | BO26: 90 | BP26: 1.31 | BQ26: =(BO26/1000)/BP26 -> 0.06870229008 | BS26: steen | BT26: 90 | BU26: 1.31 | BV26: =(BT26/1000)/BU26 -> 0.06870229008 | BX26: steen | BY26: 90 | BZ26: 1.31 | CA26: =(BY26/1000)/BZ26 -> 0.06870229008
A27: buiten | D27: 0.04 | F27: buiten | I27: 0.04 | K27: buiten | N27: 0.04 | P27: buiten | S27: 0.04 | U27: buiten | X27: 0.04 | Z27: buiten | AC27: 0.04 | AE27: buiten | AH27: 0.04 | AJ27: buiten | AM27: 0.04 | AO27: buiten | AR27: 0.04 | AT27: buiten | AW27: 0.04 | AY27: buiten | BB27: 0.04 | BD27: buiten | BG27: 0.04 | BI27: buiten | BL27: 0.04 | BN27: buiten | BQ27: 0.04 | BS27: buiten | BV27: 0.04 | BX27: buiten | CA27: 0.04
A29: correctie | D29: -0.1 | F29: correctie | I29: -0.1 | K29: correctie | N29: -0.1 | P29: correctie | S29: -0.1 | U29: correctie | X29: -0.1 | Z29: correctie | AC29: -0.1 | AE29: correctie | AH29: -0.1 | AJ29: correctie | AM29: -0.1 | AO29: correctie | AR29: -0.1 | AT29: correctie | AW29: -0.1 | AY29: correctie | BB29: -0.1 | BD29: correctie | BG29: -0.1 | BI29: correctie | BL29: -0.1 | BN29: correctie | BQ29: -0.1 | BS29: correctie | BV29: -0.1 | BX29: correctie | CA29: -0.1
A31: Rtot | D31: =FLOOR(SUM(D21:D29),0.05) -> 3.00 | F31: Rtot | I31: =FLOOR(SUM(I21:I29),0.05) -> 3.60 | K31: Rtot | N31: =FLOOR(SUM(N21:N29),0.05) -> 4.05 | P31: Rtot | S31: =FLOOR(SUM(S21:S29),0.05) -> 4.55 | U31: Rtot | X31: =FLOOR(SUM(X21:X29),0.05) -> 3.00 | Z31: Rtot | AC31: =FLOOR(SUM(AC21:AC29),0.05) -> 3.60 | AE31: Rtot | AH31: =FLOOR(SUM(AH21:AH29),0.05) -> 4.05 | AJ31: Rtot | AM31: =FLOOR(SUM(AM21:AM29),0.05) -> 4.55 | AO31: Rtot | AR31: =FLOOR(SUM(AR21:AR29),0.05) -> 3.15 | AT31: Rtot | AW31: =FLOOR(SUM(AW21:AW29),0.05) -> 3.75 | AY31: Rtot | BB31: =FLOOR(SUM(BB21:BB29),0.05) -> 4.20 | BD31: Rtot | BG31: =FLOOR(SUM(BG21:BG29),0.05) -> 4.70 | BI31: Rtot | BL31: =FLOOR(SUM(BL21:BL29),0.05) -> 3.00 | BN31: Rtot | BQ31: =FLOOR(SUM(BQ21:BQ29),0.05) -> 3.65 | BS31: Rtot | BV31: =FLOOR(SUM(BV21:BV29),0.05) -> 4.10 | BX31: Rtot | CA31: =FLOOR(SUM(CA21:CA29),0.05) -> 4.60
B33: d | C33: l | D33: R | G33: d | H33: l | I33: R | L33: d | M33: l | N33: R | Q33: d | R33: l | S33: R | V33: d | W33: l | X33: R | AA33: d | AB33: l | AC33: R | AF33: d | AG33: l | AH33: R | AK33: d | AL33: l | AM33: R | AP33: d | AQ33: l | AR33: R | AU33: d | AV33: l | AW33: R | AZ33: d | BA33: l | BB33: R | BE33: d | BF33: l | BG33: R | BJ33: d | BK33: l | BL33: R | BO33: d | BP33: l | BQ33: R | BT33: d | BU33: l | BV33: R | BY33: d | BZ33: l | CA33: R
B34: mm | C34: W/mK | D34: m²K/W | G34: mm | H34: W/mK | I34: m²K/W | L34: mm | M34: W/mK | N34: m²K/W | Q34: mm | R34: W/mK | S34: m²K/W | V34: mm | W34: W/mK | X34: m²K/W | AA34: mm | AB34: W/mK | AC34: m²K/W | AF34: mm | AG34: W/mK | AH34: m²K/W | AK34: mm | AL34: W/mK | AM34: m²K/W | AP34: mm | AQ34: W/mK | AR34: m²K/W | AU34: mm | AV34: W/mK | AW34: m²K/W | AZ34: mm | BA34: W/mK | BB34: m²K/W | BE34: mm | BF34: W/mK | BG34: m²K/W | BJ34: mm | BK34: W/mK | BL34: m²K/W | BO34: mm | BP34: W/mK | BQ34: m²K/W | BT34: mm | BU34: W/mK | BV34: m²K/W | BY34: mm | BZ34: W/mK | CA34: m²K/W
A35: binnen | D35: 0.13 | F35: binnen | I35: 0.13 | K35: binnen | N35: 0.13 | P35: binnen | S35: 0.13 | U35: binnen | X35: 0.13 | Z35: binnen | AC35: 0.13 | AE35: binnen | AH35: 0.13 | AJ35: binnen | AM35: 0.13 | AO35: binnen | AR35: 0.13 | AT35: binnen | AW35: 0.13 | AY35: binnen | BB35: 0.13 | BD35: binnen | BG35: 0.13 | BI35: binnen | BL35: 0.13 | BN35: binnen | BQ35: 0.13 | BS35: binnen | BV35: 0.13 | BX35: binnen | CA35: 0.13
A36: hout | B36: 115 | C36: 0.13 | D36: =(B36/1000)/C36 -> 0.8846153846 | F36: hout | G36: 115 | H36: 0.13 | I36: =(G36/1000)/H36 -> 0.8846153846 | K36: hout | L36: 115 | M36: 0.13 | N36: =(L36/1000)/M36 -> 0.8846153846 | P36: hout | Q36: 115 | R36: 0.13 | S36: =(Q36/1000)/R36 -> 0.8846153846 | U36: hout | V36: 115 | W36: 0.13 | X36: =(V36/1000)/W36 -> 0.8846153846 | Z36: hout | AA36: 115 | AB36: 0.13 | AC36: =(AA36/1000)/AB36 -> 0.8846153846 | AE36: hout | AF36: 115 | AG36: 0.13 | AH36: =(AF36/1000)/AG36 -> 0.8846153846 | AJ36: hout | AK36: 115 | AL36: 0.13 | AM36: =(AK36/1000)/AL36 -> 0.8846153846 | AO36: hout | AP36: 136 | AQ36: 0.13 | AR36: =(AP36/1000)/AQ36 -> 1.046153846 | AT36: hout | AU36: 136 | AV36: 0.13 | AW36: =(AU36/1000)/AV36 -> 1.046153846 | AY36: hout | AZ36: 136 | BA36: 0.13 | BB36: =(AZ36/1000)/BA36 -> 1.046153846 | BD36: hout | BE36: 136 | BF36: 0.13 | BG36: =(BE36/1000)/BF36 -> 1.046153846 | BI36: hout | BJ36: 160 | BK36: 0.13 | BL36: =(BJ36/1000)/BK36 -> 1.230769231 | BN36: hout | BO36: 160 | BP36: 0.13 | BQ36: =(BO36/1000)/BP36 -> 1.230769231 | BS36: hout | BT36: 160 | BU36: 0.13 | BV36: =(BT36/1000)/BU36 -> 1.230769231 | BX36: hout | BY36: 160 | BZ36: 0.13 | CA36: =(BY36/1000)/BZ36 -> 1.230769231
A37: EPS HR (PolyFort) | B37: 60 | C37: 0.031 | D37: =(B37/1000)/C37 -> 1.935483871 | F37: EPS HR (PolyFort) | G37: 79 | H37: 0.031 | I37: =(G37/1000)/H37 -> 2.548387097 | K37: EPS HR (PolyFort) | L37: 93 | M37: 0.031 | N37: =(L37/1000)/M37 -> 3 | P37: EPS HR (PolyFort) | Q37: 109 | R37: 0.031 | S37: =(Q37/1000)/R37 -> 3.516129032 | U37: EPS HR (PolyFort) | V37: 60 | W37: 0.031 | X37: =(V37/1000)/W37 -> 1.935483871 | Z37: EPS HR (PolyFort) | AA37: 79 | AB37: 0.031 | AC37: =(AA37/1000)/AB37 -> 2.548387097 | AE37: EPS HR (PolyFort) | AF37: 93 | AG37: 0.031 | AH37: =(AF37/1000)/AG37 -> 3 | AJ37: EPS HR (PolyFort) | AK37: 109 | AL37: 0.031 | AM37: =(AK37/1000)/AL37 -> 3.516129032 | AO37: EPS HR (PolyFort) | AP37: 60 | AQ37: 0.031 | AR37: =(AP37/1000)/AQ37 -> 1.935483871 | AT37: EPS HR (PolyFort) | AU37: 79 | AV37: 0.031 | AW37: =(AU37/1000)/AV37 -> 2.548387097 | AY37: EPS HR (PolyFort) | AZ37: 93 | BA37: 0.031 | BB37: =(AZ37/1000)/BA37 -> 3 | BD37: EPS HR (PolyFort) | BE37: 109 | BF37: 0.031 | BG37: =(BE37/1000)/BF37 -> 3.516129032 | BI37: EPS HR (PolyFort) | BJ37: 60 | BK37: 0.031 | BL37: =(BJ37/1000)/BK37 -> 1.935483871 | BN37: EPS HR (PolyFort) | BO37: 79 | BP37: 0.031 | BQ37: =(BO37/1000)/BP37 -> 2.548387097 | BS37: EPS HR (PolyFort) | BT37: 93 | BU37: 0.031 | BV37: =(BT37/1000)/BU37 -> 3 | BX37: EPS HR (PolyFort) | BY37: 109 | BZ37: 0.031 | CA37: =(BY37/1000)/BZ37 -> 3.516129032
A38: folie | D38: 0 | F38: folie | I38: 0 | K38: folie | N38: 0 | P38: folie | S38: 0 | U38: folie | X38: 0 | Z38: folie | AC38: 0 | AE38: folie | AH38: 0 | AJ38: folie | AM38: 0 | AO38: folie | AR38: 0 | AT38: folie | AW38: 0 | AY38: folie | BB38: 0 | BD38: folie | BG38: 0 | BI38: folie | BL38: 0 | BN38: folie | BQ38: 0 | BS38: folie | BV38: 0 | BX38: folie | CA38: 0
A39: spouw, 30 mm licht geventileerd | D39: 0.09 | F39: spouw, 30 mm licht geventileerd | I39: 0.09 | K39: spouw, 30 mm licht geventileerd | N39: 0.09 | P39: spouw, 30 mm licht geventileerd | S39: 0.09 | U39: spouw, 30 mm licht geventileerd | X39: 0.09 | Z39: spouw, 30 mm licht geventileerd | AC39: 0.09 | AE39: spouw, 30 mm licht geventileerd | AH39: 0.09 | AJ39: spouw, 30 mm licht geventileerd | AM39: 0.09 | AO39: spouw, 30 mm licht geventileerd | AR39: 0.09 | AT39: spouw, 30 mm licht geventileerd | AW39: 0.09 | AY39: spouw, 30 mm licht geventileerd | BB39: 0.09 | BD39: spouw, 30 mm licht geventileerd | BG39: 0.09 | BI39: spouw, 30 mm licht geventileerd | BL39: 0.09 | BN39: spouw, 30 mm licht geventileerd | BQ39: 0.09 | BS39: spouw, 30 mm licht geventileerd | BV39: 0.09 | BX39: spouw, 30 mm licht geventileerd | CA39: 0.09
A40: steen | B40: 90 | C40: 1.31 | D40: =(B40/1000)/C40 -> 0.06870229008 | F40: steen | G40: 90 | H40: 1.31 | I40: =(G40/1000)/H40 -> 0.06870229008 | K40: steen | L40: 90 | M40: 1.31 | N40: =(L40/1000)/M40 -> 0.06870229008 | P40: steen | Q40: 90 | R40: 1.31 | S40: =(Q40/1000)/R40 -> 0.06870229008 | U40: steen | V40: 90 | W40: 1.31 | X40: =(V40/1000)/W40 -> 0.06870229008 | Z40: steen | AA40: 90 | AB40: 1.31 | AC40: =(AA40/1000)/AB40 -> 0.06870229008 | AE40: steen | AF40: 90 | AG40: 1.31 | AH40: =(AF40/1000)/AG40 -> 0.06870229008 | AJ40: steen | AK40: 90 | AL40: 1.31 | AM40: =(AK40/1000)/AL40 -> 0.06870229008 | AO40: steen | AP40: 90 | AQ40: 1.31 | AR40: =(AP40/1000)/AQ40 -> 0.06870229008 | AT40: steen | AU40: 90 | AV40: 1.31 | AW40: =(AU40/1000)/AV40 -> 0.06870229008 | AY40: steen | AZ40: 90 | BA40: 1.31 | BB40: =(AZ40/1000)/BA40 -> 0.06870229008 | BD40: steen | BE40: 90 | BF40: 1.31 | BG40: =(BE40/1000)/BF40 -> 0.06870229008 | BI40: steen | BJ40: 90 | BK40: 1.31 | BL40: =(BJ40/1000)/BK40 -> 0.06870229008 | BN40: steen | BO40: 90 | BP40: 1.31 | BQ40: =(BO40/1000)/BP40 -> 0.06870229008 | BS40: steen | BT40: 90 | BU40: 1.31 | BV40: =(BT40/1000)/BU40 -> 0.06870229008 | BX40: steen | BY40: 90 | BZ40: 1.31 | CA40: =(BY40/1000)/BZ40 -> 0.06870229008
A41: buiten | D41: 0.04 | F41: buiten | I41: 0.04 | K41: buiten | N41: 0.04 | P41: buiten | S41: 0.04 | U41: buiten | X41: 0.04 | Z41: buiten | AC41: 0.04 | AE41: buiten | AH41: 0.04 | AJ41: buiten | AM41: 0.04 | AO41: buiten | AR41: 0.04 | AT41: buiten | AW41: 0.04 | AY41: buiten | BB41: 0.04 | BD41: buiten | BG41: 0.04 | BI41: buiten | BL41: 0.04 | BN41: buiten | BQ41: 0.04 | BS41: buiten | BV41: 0.04 | BX41: buiten | CA41: 0.04
A43: correctie | D43: -0.1 | F43: correctie | I43: -0.1 | K43: correctie | N43: -0.1 | P43: correctie | S43: -0.1 | U43: correctie | X43: -0.1 | Z43: correctie | AC43: -0.1 | AE43: correctie | AH43: -0.1 | AJ43: correctie | AM43: -0.1 | AO43: correctie | AR43: -0.1 | AT43: correctie | AW43: -0.1 | AY43: correctie | BB43: -0.1 | BD43: correctie | BG43: -0.1 | BI43: correctie | BL43: -0.1 | BN43: correctie | BQ43: -0.1 | BS43: correctie | BV43: -0.1 | BX43: correctie | CA43: -0.1
A45: Rtot | D45: =FLOOR(SUM(D35:D43),0.05) -> 3.00 | F45: Rtot | I45: =FLOOR(SUM(I35:I43),0.05) -> 3.65 | K45: Rtot | N45: =FLOOR(SUM(N35:N43),0.05) -> 4.10 | P45: Rtot | S45: =FLOOR(SUM(S35:S43),0.05) -> 4.60 | U45: Rtot | X45: =FLOOR(SUM(X35:X43),0.05) -> 3.00 | Z45: Rtot | AC45: =FLOOR(SUM(AC35:AC43),0.05) -> 3.65 | AE45: Rtot | AH45: =FLOOR(SUM(AH35:AH43),0.05) -> 4.10 | AJ45: Rtot | AM45: =FLOOR(SUM(AM35:AM43),0.05) -> 4.60 | AO45: Rtot | AR45: =FLOOR(SUM(AR35:AR43),0.05) -> 3.20 | AT45: Rtot | AW45: =FLOOR(SUM(AW35:AW43),0.05) -> 3.80 | AY45: Rtot | BB45: =FLOOR(SUM(BB35:BB43),0.05) -> 4.25 | BD45: Rtot | BG45: =FLOOR(SUM(BG35:BG43),0.05) -> 4.75 | BI45: Rtot | BL45: =FLOOR(SUM(BL35:BL43),0.05) -> 3.35 | BN45: Rtot | BQ45: =FLOOR(SUM(BQ35:BQ43),0.05) -> 4.00 | BS45: Rtot | BV45: =FLOOR(SUM(BV35:BV43),0.05) -> 4.45 | BX45: Rtot | CA45: =FLOOR(SUM(CA35:CA43),0.05) -> 4.95
B47: d | C47: l | D47: R | G47: d | H47: l | I47: R | L47: d | M47: l | N47: R | Q47: d | R47: l | S47: R | BJ47: d | BK47: l | BL47: R | BO47: d | BP47: l | BQ47: R | BT47: d | BU47: l | BV47: R | BY47: d | BZ47: l | CA47: R
B48: mm | C48: W/mK | D48: m²K/W | G48: mm | H48: W/mK | I48: m²K/W | L48: mm | M48: W/mK | N48: m²K/W | Q48: mm | R48: W/mK | S48: m²K/W | BJ48: mm | BK48: W/mK | BL48: m²K/W | BO48: mm | BP48: W/mK | BQ48: m²K/W | BT48: mm | BU48: W/mK | BV48: m²K/W | BY48: mm | BZ48: W/mK | CA48: m²K/W
A49: binnen | D49: 0.13 | F49: binnen | I49: 0.13 | K49: binnen | N49: 0.13 | P49: binnen | S49: 0.13 | BI49: binnen | BL49: 0.13 | BN49: binnen | BQ49: 0.13 | BS49: binnen | BV49: 0.13 | BX49: binnen | CA49: 0.13
A50: hout | B50: 130 | C50: 0.13 | D50: =(B50/1000)/C50 -> 1 | F50: hout | G50: 130 | H50: 0.13 | I50: =(G50/1000)/H50 -> 1 | K50: hout | L50: 130 | M50: 0.13 | N50: =(L50/1000)/M50 -> 1 | P50: hout | Q50: 130 | R50: 0.13 | S50: =(Q50/1000)/R50 -> 1 | BI50: hout | BJ50: 205 | BK50: 0.13 | BL50: =(BJ50/1000)/BK50 -> 1.576923077 | BN50: hout | BO50: 205 | BP50: 0.13 | BQ50: =(BO50/1000)/BP50 -> 1.576923077 | BS50: hout | BT50: 205 | BU50: 0.13 | BV50: =(BT50/1000)/BU50 -> 1.576923077 | BX50: hout | BY50: 205 | BZ50: 0.13 | CA50: =(BY50/1000)/BZ50 -> 1.576923077
A51: EPS HR (PolyFort) | B51: 60 | C51: 0.031 | D51: =(B51/1000)/C51 -> 1.935483871 | F51: EPS HR (PolyFort) | G51: 79 | H51: 0.031 | I51: =(G51/1000)/H51 -> 2.548387097 | K51: EPS HR (PolyFort) | L51: 93 | M51: 0.031 | N51: =(L51/1000)/M51 -> 3 | P51: EPS HR (PolyFort) | Q51: 109 | R51: 0.031 | S51: =(Q51/1000)/R51 -> 3.516129032 | BI51: EPS HR (PolyFort) | BJ51: 60 | BK51: 0.031 | BL51: =(BJ51/1000)/BK51 -> 1.935483871 | BN51: EPS HR (PolyFort) | BO51: 79 | BP51: 0.031 | BQ51: =(BO51/1000)/BP51 -> 2.548387097 | BS51: EPS HR (PolyFort) | BT51: 93 | BU51: 0.031 | BV51: =(BT51/1000)/BU51 -> 3 | BX51: EPS HR (PolyFort) | BY51: 109 | BZ51: 0.031 | CA51: =(BY51/1000)/BZ51 -> 3.516129032
A52: folie | D52: 0 | F52: folie | I52: 0 | K52: folie | N52: 0 | P52: folie | S52: 0 | BI52: folie | BL52: 0 | BN52: folie | BQ52: 0 | BS52: folie | BV52: 0 | BX52: folie | CA52: 0
A53: spouw, 30 mm licht geventileerd | D53: 0.09 | F53: spouw, 30 mm licht geventileerd | I53: 0.09 | K53: spouw, 30 mm licht geventileerd | N53: 0.09 | P53: spouw, 30 mm licht geventileerd | S53: 0.09 | BI53: spouw, 30 mm licht geventileerd | BL53: 0.09 | BN53: spouw, 30 mm licht geventileerd | BQ53: 0.09 | BS53: spouw, 30 mm licht geventileerd | BV53: 0.09 | BX53: spouw, 30 mm licht geventileerd | CA53: 0.09
A54: steen | B54: 90 | C54: 1.31 | D54: =(B54/1000)/C54 -> 0.06870229008 | F54: steen | G54: 90 | H54: 1.31 | I54: =(G54/1000)/H54 -> 0.06870229008 | K54: steen | L54: 90 | M54: 1.31 | N54: =(L54/1000)/M54 -> 0.06870229008 | P54: steen | Q54: 90 | R54: 1.31 | S54: =(Q54/1000)/R54 -> 0.06870229008 | BI54: steen | BJ54: 90 | BK54: 1.31 | BL54: =(BJ54/1000)/BK54 -> 0.06870229008 | BN54: steen | BO54: 90 | BP54: 1.31 | BQ54: =(BO54/1000)/BP54 -> 0.06870229008 | BS54: steen | BT54: 90 | BU54: 1.31 | BV54: =(BT54/1000)/BU54 -> 0.06870229008 | BX54: steen | BY54: 90 | BZ54: 1.31 | CA54: =(BY54/1000)/BZ54 -> 0.06870229008
A55: buiten | D55: 0.04 | F55: buiten | I55: 0.04 | K55: buiten | N55: 0.04 | P55: buiten | S55: 0.04 | BI55: buiten | BL55: 0.04 | BN55: buiten | BQ55: 0.04 | BS55: buiten | BV55: 0.04 | BX55: buiten | CA55: 0.04
A57: correctie | D57: -0.1 | F57: correctie | I57: -0.1 | K57: correctie | N57: -0.1 | P57: correctie | S57: -0.1 | BI57: correctie | BL57: -0.1 | BN57: correctie | BQ57: -0.1 | BS57: correctie | BV57: -0.1 | BX57: correctie | CA57: -0.1
A59: Rtot | D59: =FLOOR(SUM(D49:D57),0.05) -> 3.15 | F59: Rtot | I59: =FLOOR(SUM(I49:I57),0.05) -> 3.75 | K59: Rtot | N59: =FLOOR(SUM(N49:N57),0.05) -> 4.20 | P59: Rtot | S59: =FLOOR(SUM(S49:S57),0.05) -> 4.70 | BI59: Rtot | BL59: =FLOOR(SUM(BL49:BL57),0.05) -> 3.70 | BN59: Rtot | BQ59: =FLOOR(SUM(BQ49:BQ57),0.05) -> 4.35 | BS59: Rtot | BV59: =FLOOR(SUM(BV49:BV57),0.05) -> 4.80 | BX59: Rtot | CA59: =FLOOR(SUM(CA49:CA57),0.05) -> 5.30
B61: d | C61: l | D61: R | G61: d | H61: l | I61: R | L61: d | M61: l | N61: R | Q61: d | R61: l | S61: R | BJ61: d | BK61: l | BL61: R | BO61: d | BP61: l | BQ61: R | BT61: d | BU61: l | BV61: R | BY61: d | BZ61: l | CA61: R
B62: mm | C62: W/mK | D62: m²K/W | G62: mm | H62: W/mK | I62: m²K/W | L62: mm | M62: W/mK | N62: m²K/W | Q62: mm | R62: W/mK | S62: m²K/W | BJ62: mm | BK62: W/mK | BL62: m²K/W | BO62: mm | BP62: W/mK | BQ62: m²K/W | BT62: mm | BU62: W/mK | BV62: m²K/W | BY62: mm | BZ62: W/mK | CA62: m²K/W
A63: binnen | D63: 0.13 | F63: binnen | I63: 0.13 | K63: binnen | N63: 0.13 | P63: binnen | S63: 0.13 | BI63: binnen | BL63: 0.13 | BN63: binnen | BQ63: 0.13 | BS63: binnen | BV63: 0.13 | BX63: binnen | CA63: 0.13
A64: hout | B64: 136 | C64: 0.13 | D64: =(B64/1000)/C64 -> 1.046153846 | F64: hout | G64: 136 | H64: 0.13 | I64: =(G64/1000)/H64 -> 1.046153846 | K64: hout | L64: 136 | M64: 0.13 | N64: =(L64/1000)/M64 -> 1.046153846 | P64: hout | Q64: 136 | R64: 0.13 | S64: =(Q64/1000)/R64 -> 1.046153846 | BI64: hout | BJ64: 250 | BK64: 0.13 | BL64: =(BJ64/1000)/BK64 -> 1.923076923 | BN64: hout | BO64: 250 | BP64: 0.13 | BQ64: =(BO64/1000)/BP64 -> 1.923076923 | BS64: hout | BT64: 250 | BU64: 0.13 | BV64: =(BT64/1000)/BU64 -> 1.923076923 | BX64: hout | BY64: 250 | BZ64: 0.13 | CA64: =(BY64/1000)/BZ64 -> 1.923076923
A65: EPS HR (PolyFort) | B65: 60 | C65: 0.031 | D65: =(B65/1000)/C65 -> 1.935483871 | F65: EPS HR (PolyFort) | G65: 79 | H65: 0.031 | I65: =(G65/1000)/H65 -> 2.548387097 | K65: EPS HR (PolyFort) | L65: 93 | M65: 0.031 | N65: =(L65/1000)/M65 -> 3 | P65: EPS HR (PolyFort) | Q65: 109 | R65: 0.031 | S65: =(Q65/1000)/R65 -> 3.516129032 | BI65: EPS HR (PolyFort) | BJ65: 60 | BK65: 0.031 | BL65: =(BJ65/1000)/BK65 -> 1.935483871 | BN65: EPS HR (PolyFort) | BO65: 79 | BP65: 0.031 | BQ65: =(BO65/1000)/BP65 -> 2.548387097 | BS65: EPS HR (PolyFort) | BT65: 93 | BU65: 0.031 | BV65: =(BT65/1000)/BU65 -> 3 | BX65: EPS HR (PolyFort) | BY65: 109 | BZ65: 0.031 | CA65: =(BY65/1000)/BZ65 -> 3.516129032
A66: folie | D66: 0 | F66: folie | I66: 0 | K66: folie | N66: 0 | P66: folie | S66: 0 | BI66: folie | BL66: 0 | BN66: folie | BQ66: 0 | BS66: folie | BV66: 0 | BX66: folie | CA66: 0
A67: spouw, 30 mm licht geventileerd | D67: 0.09 | F67: spouw, 30 mm licht geventileerd | I67: 0.09 | K67: spouw, 30 mm licht geventileerd | N67: 0.09 | P67: spouw, 30 mm licht geventileerd | S67: 0.09 | BI67: spouw, 30 mm licht geventileerd | BL67: 0.09 | BN67: spouw, 30 mm licht geventileerd | BQ67: 0.09 | BS67: spouw, 30 mm licht geventileerd | BV67: 0.09 | BX67: spouw, 30 mm licht geventileerd | CA67: 0.09
A68: steen | B68: 90 | C68: 1.31 | D68: =(B68/1000)/C68 -> 0.06870229008 | F68: steen | G68: 90 | H68: 1.31 | I68: =(G68/1000)/H68 -> 0.06870229008 | K68: steen | L68: 90 | M68: 1.31 | N68: =(L68/1000)/M68 -> 0.06870229008 | P68: steen | Q68: 90 | R68: 1.31 | S68: =(Q68/1000)/R68 -> 0.06870229008 | BI68: steen | BJ68: 90 | BK68: 1.31 | BL68: =(BJ68/1000)/BK68 -> 0.06870229008 | BN68: steen | BO68: 90 | BP68: 1.31 | BQ68: =(BO68/1000)/BP68 -> 0.06870229008 | BS68: steen | BT68: 90 | BU68: 1.31 | BV68: =(BT68/1000)/BU68 -> 0.06870229008 | BX68: steen | BY68: 90 | BZ68: 1.31 | CA68: =(BY68/1000)/BZ68 -> 0.06870229008
A69: buiten | D69: 0.04 | F69: buiten | I69: 0.04 | K69: buiten | N69: 0.04 | P69: buiten | S69: 0.04 | BI69: buiten | BL69: 0.04 | BN69: buiten | BQ69: 0.04 | BS69: buiten | BV69: 0.04 | BX69: buiten | CA69: 0.04
A71: correctie | D71: -0.1 | F71: correctie | I71: -0.1 | K71: correctie | N71: -0.1 | P71: correctie | S71: -0.1 | BI71: correctie | BL71: -0.1 | BN71: correctie | BQ71: -0.1 | BS71: correctie | BV71: -0.1 | BX71: correctie | CA71: -0.1
A73: Rtot | D73: =FLOOR(SUM(D63:D71),0.05) -> 3.20 | F73: Rtot | I73: =FLOOR(SUM(I63:I71),0.05) -> 3.80 | K73: Rtot | N73: =FLOOR(SUM(N63:N71),0.05) -> 4.25 | P73: Rtot | S73: =FLOOR(SUM(S63:S71),0.05) -> 4.75 | BI73: Rtot | BL73: =FLOOR(SUM(BL63:BL71),0.05) -> 4.05 | BN73: Rtot | BQ73: =FLOOR(SUM(BQ63:BQ71),0.05) -> 4.70 | BS73: Rtot | BV73: =FLOOR(SUM(BV63:BV71),0.05) -> 5.15 | BX73: Rtot | CA73: =FLOOR(SUM(CA63:CA71),0.05) -> 5.65
B75: d | C75: l | D75: R | G75: d | H75: l | I75: R | L75: d | M75: l | N75: R | Q75: d | R75: l | S75: R
B76: mm | C76: W/mK | D76: m²K/W | G76: mm | H76: W/mK | I76: m²K/W | L76: mm | M76: W/mK | N76: m²K/W | Q76: mm | R76: W/mK | S76: m²K/W
A77: binnen | D77: 0.13 | F77: binnen | I77: 0.13 | K77: binnen | N77: 0.13 | P77: binnen | S77: 0.13
A78: hout | B78: 150 | C78: 0.13 | D78: =(B78/1000)/C78 -> 1.153846154 | F78: hout | G78: 150 | H78: 0.13 | I78: =(G78/1000)/H78 -> 1.153846154 | K78: hout | L78: 150 | M78: 0.13 | N78: =(L78/1000)/M78 -> 1.153846154 | P78: hout | Q78: 150 | R78: 0.13 | S78: =(Q78/1000)/R78 -> 1.153846154
A79: EPS HR (PolyFort) | B79: 60 | C79: 0.031 | D79: =(B79/1000)/C79 -> 1.935483871 | F79: EPS HR (PolyFort) | G79: 79 | H79: 0.031 | I79: =(G79/1000)/H79 -> 2.548387097 | K79: EPS HR (PolyFort) | L79: 93 | M79: 0.031 | N79: =(L79/1000)/M79 -> 3 | P79: EPS HR (PolyFort) | Q79: 109 | R79: 0.031 | S79: =(Q79/1000)/R79 -> 3.516129032
A80: folie | D80: 0 | F80: folie | I80: 0 | K80: folie | N80: 0 | P80: folie | S80: 0
A81: spouw, 30 mm licht geventileerd | D81: 0.09 | F81: spouw, 30 mm licht geventileerd | I81: 0.09 | K81: spouw, 30 mm licht geventileerd | N81: 0.09 | P81: spouw, 30 mm licht geventileerd | S81: 0.09
A82: steen | B82: 90 | C82: 1.31 | D82: =(B82/1000)/C82 -> 0.06870229008 | F82: steen | G82: 90 | H82: 1.31 | I82: =(G82/1000)/H82 -> 0.06870229008 | K82: steen | L82: 90 | M82: 1.31 | N82: =(L82/1000)/M82 -> 0.06870229008 | P82: steen | Q82: 90 | R82: 1.31 | S82: =(Q82/1000)/R82 -> 0.06870229008
A83: buiten | D83: 0.04 | F83: buiten | I83: 0.04 | K83: buiten | N83: 0.04 | P83: buiten | S83: 0.04
A85: correctie | D85: -0.1 | F85: correctie | I85: -0.1 | K85: correctie | N85: -0.1 | P85: correctie | S85: -0.1
A87: Rtot | D87: =FLOOR(SUM(D77:D85),0.05) -> 3 | F87: Rtot | I87: =FLOOR(SUM(I77:I85),0.05) -> 3.90 | K87: Rtot | N87: =FLOOR(SUM(N77:N85),0.05) -> 4.35 | P87: Rtot | S87: =FLOOR(SUM(S77:S85),0.05) -> 4.85
B89: d | C89: l | D89: R | G89: d | H89: l | I89: R | L89: d | M89: l | N89: R | Q89: d | R89: l | S89: R
B90: mm | C90: W/mK | D90: m²K/W | G90: mm | H90: W/mK | I90: m²K/W | L90: mm | M90: W/mK | N90: m²K/W | Q90: mm | R90: W/mK | S90: m²K/W
A91: binnen | D91: 0.13 | F91: binnen | I91: 0.13 | K91: binnen | N91: 0.13 | P91: binnen | S91: 0.13
A92: hout | B92: 160 | C92: 0.13 | D92: =(B92/1000)/C92 -> 1.230769231 | F92: hout | G92: 160 | H92: 0.13 | I92: =(G92/1000)/H92 -> 1.230769231 | K92: hout | L92: 160 | M92: 0.13 | N92: =(L92/1000)/M92 -> 1.230769231 | P92: hout | Q92: 160 | R92: 0.13 | S92: =(Q92/1000)/R92 -> 1.230769231
A93: EPS HR (PolyFort) | B93: 60 | C93: 0.031 | D93: =(B93/1000)/C93 -> 1.935483871 | F93: EPS HR (PolyFort) | G93: 79 | H93: 0.031 | I93: =(G93/1000)/H93 -> 2.548387097 | K93: EPS HR (PolyFort) | L93: 93 | M93: 0.031 | N93: =(L93/1000)/M93 -> 3 | P93: EPS HR (PolyFort) | Q93: 109 | R93: 0.031 | S93: =(Q93/1000)/R93 -> 3.516129032
A94: folie | D94: 0 | F94: folie | I94: 0 | K94: folie | N94: 0 | P94: folie | S94: 0
A95: spouw, 30 mm licht geventileerd | D95: 0.09 | F95: spouw, 30 mm licht geventileerd | I95: 0.09 | K95: spouw, 30 mm licht geventileerd | N95: 0.09 | P95: spouw, 30 mm licht geventileerd | S95: 0.09
A96: steen | B96: 90 | C96: 1.31 | D96: =(B96/1000)/C96 -> 0.06870229008 | F96: steen | G96: 90 | H96: 1.31 | I96: =(G96/1000)/H96 -> 0.06870229008 | K96: steen | L96: 90 | M96: 1.31 | N96: =(L96/1000)/M96 -> 0.06870229008 | P96: steen | Q96: 90 | R96: 1.31 | S96: =(Q96/1000)/R96 -> 0.06870229008
A97: buiten | D97: 0.04 | F97: buiten | I97: 0.04 | K97: buiten | N97: 0.04 | P97: buiten | S97: 0.04
A99: correctie | D99: -0.1 | F99: correctie | I99: -0.1 | K99: correctie | N99: -0.1 | P99: correctie | S99: -0.1
A101: Rtot | D101: =FLOOR(SUM(D91:D99),0.05) -> 3.35 | F101: Rtot | I101: =FLOOR(SUM(I91:I99),0.05) -> 4.00 | K101: Rtot | N101: =FLOOR(SUM(N91:N99),0.05) -> 4.45 | P101: Rtot | S101: =FLOOR(SUM(S91:S99),0.05) -> 4.95
B103: d | C103: l | D103: R | G103: d | H103: l | I103: R | L103: d | M103: l | N103: R | Q103: d | R103: l | S103: R
B104: mm | C104: W/mK | D104: m²K/W | G104: mm | H104: W/mK | I104: m²K/W | L104: mm | M104: W/mK | N104: m²K/W | Q104: mm | R104: W/mK | S104: m²K/W
A105: binnen | D105: 0.13 | F105: binnen | I105: 0.13 | K105: binnen | N105: 0.13 | P105: binnen | S105: 0.13
A106: hout | B106: 166 | C106: 0.13 | D106: =(B106/1000)/C106 -> 1.276923077 | F106: hout | G106: 166 | H106: 0.13 | I106: =(G106/1000)/H106 -> 1.276923077 | K106: hout | L106: 166 | M106: 0.13 | N106: =(L106/1000)/M106 -> 1.276923077 | P106: hout | Q106: 166 | R106: 0.13 | S106: =(Q106/1000)/R106 -> 1.276923077
A107: EPS HR (PolyFort) | B107: 60 | C107: 0.031 | D107: =(B107/1000)/C107 -> 1.935483871 | F107: EPS HR (PolyFort) | G107: 79 | H107: 0.031 | I107: =(G107/1000)/H107 -> 2.548387097 | K107: EPS HR (PolyFort) | L107: 93 | M107: 0.031 | N107: =(L107/1000)/M107 -> 3 | P107: EPS HR (PolyFort) | Q107: 109 | R107: 0.031 | S107: =(Q107/1000)/R107 -> 3.516129032
A108: folie | D108: 0 | F108: folie | I108: 0 | K108: folie | N108: 0 | P108: folie | S108: 0
A109: spouw, 30 mm licht geventileerd | D109: 0.09 | F109: spouw, 30 mm licht geventileerd | I109: 0.09 | K109: spouw, 30 mm licht geventileerd | N109: 0.09 | P109: spouw, 30 mm licht geventileerd | S109: 0.09
A110: steen | B110: 90 | C110: 1.31 | D110: =(B110/1000)/C110 -> 0.06870229008 | F110: steen | G110: 90 | H110: 1.31 | I110: =(G110/1000)/H110 -> 0.06870229008 | K110: steen | L110: 90 | M110: 1.31 | N110: =(L110/1000)/M110 -> 0.06870229008 | P110: steen | Q110: 90 | R110: 1.31 | S110: =(Q110/1000)/R110 -> 0.06870229008
A111: buiten | D111: 0.04 | F111: buiten | I111: 0.04 | K111: buiten | N111: 0.04 | P111: buiten | S111: 0.04
A113: correctie | D113: -0.1 | F113: correctie | I113: -0.1 | K113: correctie | N113: -0.1 | P113: correctie | S113: -0.1
A115: Rtot | D115: =FLOOR(SUM(D105:D113),0.05) -> 3.40 | F115: Rtot | I115: =FLOOR(SUM(I105:I113),0.05) -> 4.05 | K115: Rtot | N115: =FLOOR(SUM(N105:N113),0.05) -> 4.5 | P115: Rtot | S115: =FLOOR(SUM(S105:S113),0.05) -> 5.00
B117: d | C117: l | D117: R | G117: d | H117: l | I117: R | L117: d | M117: l | N117: R | Q117: d | R117: l | S117: R
B118: mm | C118: W/mK | D118: m²K/W | G118: mm | H118: W/mK | I118: m²K/W | L118: mm | M118: W/mK | N118: m²K/W | Q118: mm | R118: W/mK | S118: m²K/W
A119: binnen | D119: 0.13 | F119: binnen | I119: 0.13 | K119: binnen | N119: 0.13 | P119: binnen | S119: 0.13
A120: hout | B120: 180 | C120: 0.13 | D120: =(B120/1000)/C120 -> 1.384615385 | F120: hout | G120: 180 | H120: 0.13 | I120: =(G120/1000)/H120 -> 1.384615385 | K120: hout | L120: 180 | M120: 0.13 | N120: =(L120/1000)/M120 -> 1.384615385 | P120: hout | Q120: 180 | R120: 0.13 | S120: =(Q120/1000)/R120 -> 1.384615385
A121: EPS HR (PolyFort) | B121: 60 | C121: 0.031 | D121: =(B121/1000)/C121 -> 1.935483871 | F121: EPS HR (PolyFort) | G121: 79 | H121: 0.031 | I121: =(G121/1000)/H121 -> 2.548387097 | K121: EPS HR (PolyFort) | L121: 93 | M121: 0.031 | N121: =(L121/1000)/M121 -> 3 | P121: EPS HR (PolyFort) | Q121: 109 | R121: 0.031 | S121: =(Q121/1000)/R121 -> 3.516129032
A122: folie | D122: 0 | F122: folie | I122: 0 | K122: folie | N122: 0 | P122: folie | S122: 0
A123: spouw, 30 mm licht geventileerd | D123: 0.09 | F123: spouw, 30 mm licht geventileerd | I123: 0.09 | K123: spouw, 30 mm licht geventileerd | N123: 0.09 | P123: spouw, 30 mm licht geventileerd | S123: 0.09
A124: steen | B124: 90 | C124: 1.31 | D124: =(B124/1000)/C124 -> 0.06870229008 | F124: steen | G124: 90 | H124: 1.31 | I124: =(G124/1000)/H124 -> 0.06870229008 | K124: steen | L124: 90 | M124: 1.31 | N124: =(L124/1000)/M124 -> 0.06870229008 | P124: steen | Q124: 90 | R124: 1.31 | S124: =(Q124/1000)/R124 -> 0.06870229008
A125: buiten | D125: 0.04 | F125: buiten | I125: 0.04 | K125: buiten | N125: 0.04 | P125: buiten | S125: 0.04
A127: correctie | D127: -0.1 | F127: correctie | I127: -0.1 | K127: correctie | N127: -0.1 | P127: correctie | S127: -0.1
A129: Rtot | D129: =FLOOR(SUM(D119:D127),0.05) -> 3.50 | F129: Rtot | I129: =FLOOR(SUM(I119:I127),0.05) -> 4.15 | K129: Rtot | N129: =FLOOR(SUM(N119:N127),0.05) -> 4.60 | P129: Rtot | S129: =FLOOR(SUM(S119:S127),0.05) -> 5.10

Sheet Gesch (hidden)
A1: 2006-09-11 | C1: Binnenspouwbladen ingevoerd
A2: 2006-11-10 | C2: Lay-out afgewerkt en Franstalige versie toegevoegd, incl taalkeuzeknop
A3: 2006-10-17 | C3: Franse vertaling toegevoegd
A4: 2007-01-15 | C4: Alleen in NL versie t.b.v. project NB 80 mm beton binnenspouwblad ingevoerd.
A5: 2007-02-01 | C5: Ook Franse versie 80 mm Beton binnenspouwblad ingevoerd; lay out gestoomlijnd
A6: 2007-04-16 | C6: Werkblad standaardconstructie en dikte 60 mm toegevoegd
A7: 2008-06-04 | C7: Dikten 79, 93 en 109 mm toegevoegd
A8: 2008-06-16 | C8: Vrije dikten 30 - 100 mm en alufolie bij Contr conc toegevoegd
A9: 2008-10-30 | C9: Decker toegevoegd
A10: 2009-02-20 | C10: Vergelijk t.b.v. brochures toegevoegd
A11: 2009-02-26 | C11: Lambda 0,036 voor XPS (≥ 60 mm dik) toegevoegd
A12: 2009-08-12 | C12: Diverse PURren toegevoegd (t.b.v.Contr conc.)

Sheet Sheet1 (hidden)
